lending/lending_fUSD_20240911
["ID","MTS","AMOUNT","RATE_DAILY","PERIOD"]
[337767964,1726080632300,-393.90875345,0.00012274,2]
[337767966,1726080632309,-181.68,0.00012458,2]
[337767967,1726080632319,-112.81123817,0.00012477,2]
[337767968,1726080632330,-37.18876183,0.00012477,2]
[337767969,1726080632339,-250.0,0.00012493,2]
[337767970,1726080632348,-180.56,0.00012505,2]
[337767971,1726080632358,-250.0,0.0001253,2]
[337767972,1726080632367,-1476.80779872,0.00012543,2]
[337767973,1726080632384,-4531.66220128,0.00012543,2]
[337767974,1726080632394,-200.0,0.00012563,2]
[337767975,1726080632404,-300.0,0.00012663,2]
[337767976,1726080632415,-597.96,0.00012664,2]
[337767977,1726080632426,-155.49,0.00012702,2]
[337767978,1726080632435,-207.38239134,0.00012705,2]
[337767979,1726080632446,-42.61760866,0.00012705,2]
[337767980,1726080632456,-657.38239134,0.00012705,2]
[337767981,1726080632468,-563.75002057,0.00012705,2]
[337767982,1726080632480,-778.86758809,0.00012705,2]
[337767983,1726080632492,-155.49,0.00012708,2]
[337767984,1726080632501,-499.99,0.00012708,2]
[337767985,1726080632511,-155.49,0.00012713,2]
[337767986,1726080632520,-155.49,0.00012718,2]
[337767987,1726080632530,-155.49,0.00012724,2]
[337767988,1726080632539,-155.49,0.00012729,2]
[337767989,1726080632549,-155.49,0.00012734,2]
[337767990,1726080632558,-155.49,0.00012739,2]
[337767991,1726080632567,-155.49,0.00012745,2]
[337767992,1726080632577,-155.49,0.0001275,2]
[337767993,1726080632587,-155.49,0.00012755,2]
[337767994,1726080632596,-155.49,0.00012761,2]
[337767995,1726080632606,-155.49,0.00012766,2]
[337767996,1726080632615,-146.99191854,0.00013131,2]
[337767997,1726080632643,-153.00808146,0.00013131,2]
[337767998,1726080632654,-5090.28363942,0.0001319,2]
[337767999,1726080632666,-18809.71636058,0.0001319,2]
[337768000,1726080632677,-500.0,0.00013296,2]
[337768001,1726080632687,-1000.0,0.00013296,2]
[337768002,1726080632696,-450.0,0.00013341,2]
[337768004,1726080632705,-179.36,0.00013345,2]
[337768006,1726080632714,-150.0,0.00013349,2]
[337768008,1726080632724,-2250.67,0.00013349,2]
[337768010,1726080632734,-169.71,0.00013391,2]
[337768012,1726080632744,-10000.0,0.00013423,2]
[337768014,1726080632753,-329.30022412,0.00013488,2]
[337768016,1726080632762,-245.55012574,0.00013488,2]
[337768018,1726080632771,-170.77238643,0.00013488,2]
[337768019,1726080632780,-150.0,0.00013488,2]
[337768020,1726080632790,-273.58711516,0.00013488,2]
[337768022,1726080632799,-193.63511683,0.00013488,2]
[337768024,1726080632809,-150.0,0.00013488,2]
[337768025,1726080632818,-255.30444537,0.00013488,2]
[337768026,1726080632827,-150.0,0.00013488,2]
[337768027,1726080632836,-150.16900829,0.00013488,2]
[337768028,1726080632845,-150.0,0.00013488,2]
[337768029,1726080632855,-162.94870635,0.00013488,2]
[337768030,1726080632864,-243.20371268,0.00013488,2]
[337768031,1726080632873,-329.30022412,0.00013503,2]
[337768032,1726080632882,-329.30022412,0.00013518,2]
[337768033,1726080632891,-329.30022412,0.00013533,2]
[337768034,1726080632900,-150.0,0.00013538,2]
[337768035,1726080632909,-329.30022412,0.00013548,2]
[337768036,1726080632920,-329.30022412,0.00013563,2]
[337768037,1726080632929,-155.19,0.00013567,2]
[337768038,1726080632938,-329.30022412,0.00013578,2]
[337768039,1726080632947,-150.0,0.00013588,2]
[337768040,1726080632956,-329.30022412,0.00013594,2]
[337768041,1726080632965,-329.30022412,0.00013609,2]
[337768042,1726080632975,-329.30022412,0.00013624,2]
[337768043,1726080632984,-150.0,0.00013638,2]
[337768044,1726080632993,-329.30022412,0.00013639,2]
[337768045,1726080633002,-329.30022412,0.00013654,2]
[337768046,1726080633011,-336.01,0.00013654,2]
[337768047,1726080633021,-329.30022412,0.00013669,2]
[337768048,1726080633030,-329.30022412,0.00013684,2]
[337768049,1726080633039,-150.0,0.00013687,2]
[337768050,1726080633048,-214.0482,0.0001369,2]
[337768051,1726080633058,-164.56,0.00013699,2]
[337768052,1726080633067,-2751.0,0.00013699,2]
[337768053,1726080633076,-329.30022412,0.000137,2]
[337768054,1726080633085,-98.53106293,0.00013702,2]
[337768055,1726080633097,-51.46893707,0.00013702,2]
[337768056,1726080633106,-329.30022412,0.00013715,2]
[337768057,1726080633115,-329.30022412,0.0001373,2]
[337768058,1726080633124,-150.0,0.00013737,2]
[337768059,1726080633133,-329.30022412,0.00013745,2]
[337768060,1726080633142,-57.34308239,0.00013752,2]
[337768061,1726080633165,-859.13691761,0.00013752,2]
[337768062,1726080633175,-329.30022412,0.0001376,2]
[337768063,1726080633185,-22.56285827,0.00013775,2]
[337768064,1726080633197,-306.73736585,0.00013775,2]
[337768065,1726080633206,-150.0,0.00013787,2]
[337768066,1726080633216,-6437.2162095,0.0001379,2]
[337768067,1726080633227,-5235.04586489,0.0001379,2]
[337768068,1726080633239,-476.27121106,0.0001379,2]
[337768069,1726080633250,-251.35461498,0.0001379,2]
[337768070,1726080633282,-5925.17501481,0.0001379,2]
[337768071,1726080633293,-2035.89616596,0.0001379,2]
[337768072,1726080633305,-429.1764188,0.0001379,2]
[337768073,1726080633314,-3074.89848414,0.0001379,2]
[337768074,1726080633326,-4850.06141586,0.0001379,2]
[337768075,1726080633335,-182.953,0.0001379,2]
[337768076,1726080633345,-466.3484,0.0001379,2]
[337768077,1726080633354,-292.8626,0.0001379,2]
[337768078,1726080633363,-213.3026,0.0001379,2]
[337768079,1726080633373,-247.5158,0.0001379,2]
[337768080,1726080633383,-1143.0515,0.0001379,2]
[337768081,1726080633392,-506.6185,0.0001379,2]
[337768082,1726080633402,-3209.8632,0.0001379,2]
[337768083,1726080633411,-289.9408,0.0001379,2]
[337768084,1726080633424,-340.3042,0.0001379,2]
[337768085,1726080633443,-1428.2992,0.0001379,2]
[337768086,1726080633452,-827.9067,0.0001379,2]
[337768087,1726080633462,-8897.529,0.0001379,2]
[337768088,1726080633472,-1000.0,0.0001379,2]
[337768089,1726080633481,-329.30022412,0.0001379,2]
[337768090,1726080633490,-329.30022412,0.00013806,2]
[337768091,1726080633500,-329.30022412,0.00013821,2]
[337768092,1726080633509,-329.30022412,0.00013836,2]
[337768093,1726080633518,-150.0,0.00013837,2]
[337768094,1726080633528,-329.30022412,0.00013851,2]
[337768095,1726080633537,-329.30022412,0.00013866,2]
[337768096,1726080633547,-500.0,0.00013873,2]
[337768097,1726080633556,-500.0,0.00013873,2]
[337768098,1726080633566,-500.0,0.00013873,2]
[337768099,1726080633576,-9246.70134051,0.0001388,2]
[337768100,1726080633586,-329.30022412,0.00013881,2]
[337768101,1726080633596,-150.0,0.00013887,2]
[337768102,1726080633605,-500.0,0.00013889,2]
[337768103,1726080633615,-500.0,0.00013889,2]
[337768104,1726080633625,-500.0,0.00013889,2]
[337768105,1726080633634,-531.08958564,0.00013889,2]
[337768106,1726080633647,-500.0,0.00013889,2]
[337768107,1726080633657,-500.0,0.00013889,2]
[337768108,1726080633667,-500.0,0.00013889,2]
[337768109,1726080633679,-500.0,0.00013889,2]
[337768110,1726080633690,-500.0,0.00013889,2]
[337768111,1726080633699,-500.0,0.00013889,2]
[337768112,1726080633709,-500.0,0.00013889,2]
[337768113,1726080633719,-500.0,0.00013889,2]
[337768114,1726080633730,-500.0,0.00013889,2]
[337768115,1726080633739,-500.0,0.00013889,2]
[337768116,1726080633749,-500.0,0.00013889,2]
[337768117,1726080633759,-500.0,0.00013889,2]
[337768118,1726080633768,-500.0,0.00013889,2]
[337768119,1726080633778,-500.0,0.00013889,2]
[337768120,1726080633787,-500.0,0.00013889,2]
[337768121,1726080633797,-500.0,0.00013889,2]
[337768122,1726080633806,-500.0,0.00013889,2]
[337768123,1726080633815,-500.0,0.00013889,2]
[337768124,1726080633825,-500.0,0.00013889,2]
[337768125,1726080633834,-500.0,0.00013889,2]
[337768126,1726080633843,-500.0,0.00013889,2]
[337768127,1726080633852,-500.0,0.00013889,2]
[337768128,1726080633862,-500.0,0.00013889,2]
[337768129,1726080633871,-360.1976878,0.00013889,2]
[337768130,1726080633880,-1000.0,0.00013889,2]
[337768131,1726080633889,-165947.2944385,0.0001389,2]
[337768132,1726080633901,-278.60878409,0.0001389,2]
[337768133,1726080633913,-541.65536624,0.0001389,2]
[337768134,1726080633926,-1448.58429367,0.0001389,2]
[337768135,1726080633937,-445.46790199,0.0001389,2]
[337768136,1726080633948,-4773.11977575,0.0001389,2]
[337768137,1726080633967,-2966.48754,0.0001389,2]
[337768138,1726080633978,-20557.51940339,0.0001389,2]
[337768139,1726080633994,-1300.0,0.0001389,2]
[337768140,1726080634006,-592.36206145,0.0001389,2]
[337768141,1726080638290,-956.07,0.00012564,2]
[337768143,1726080638300,-976.61557548,0.00013423,2]
[337768144,1726080638312,-1239.22320358,0.00013423,2]
[337768145,1726080638323,-4897.70396392,0.00013423,2]
[337768146,1726080638334,-700.52666424,0.0001389,2]
[337768147,1726080638345,-1178.95724531,0.0001389,2]
[337768148,1726080638360,-531.06930366,0.0001389,2]
[337768149,1726080638371,-4676.71192293,0.0001389,2]
[337768150,1726080638380,-420.0,0.00013891,2]
[337768151,1726080638390,-329.30022412,0.00013896,2]
[337768152,1726080638399,-2598.81,0.00013903,2]
[337768153,1726080638409,-329.30022412,0.00013912,2]
[337768154,1726080638419,-150.0,0.00013916,2]
[337768155,1726080638428,-329.30022412,0.00013927,2]
[337768156,1726080638438,-150.0,0.00013937,2]
[337768157,1726080638447,-329.30022412,0.00013942,2]
[337768158,1726080638457,-329.30022412,0.00013957,2]
[337768159,1726080638467,-9246.70134051,0.00013964,2]
[337768160,1726080638475,-329.30022412,0.00013972,2]
[337768161,1726080638485,-183.879101,0.00013974,2]
[337768162,1726080638494,-154.362379,0.00013974,2]
[337768163,1726080638503,-329.30022412,0.00013987,2]
[337768164,1726080638513,-150.0,0.00013987,2]
[337768165,1726080638522,-329.30022412,0.00014002,2]
[337768166,1726080638532,-181.68,0.00014015,2]
[337768167,1726080638541,-329.30022412,0.00014017,2]
[337768168,1726080638551,-329.30022412,0.00014033,2]
[337768169,1726080638561,-150.0,0.00014037,2]
[337768170,1726080638570,-329.30022412,0.00014048,2]
[337768171,1726080638580,-329.30022412,0.00014063,2]
[337768173,1726080638589,-200.0,0.00014074,2]
[337768175,1726080638599,-329.30022412,0.00014078,2]
[337768177,1726080638609,-150.0,0.00014087,2]
[337768179,1726080638618,-329.30022412,0.00014093,2]
[337768181,1726080638628,-176.33,0.00014094,2]
[337768183,1726080638637,-329.30022412,0.00014108,2]
[337768185,1726080638649,-329.30022412,0.00014123,2]
[337768187,1726080638659,-150.0,0.0001413,2]
[337768189,1726080638668,-150.0,0.00014137,2]
[337768191,1726080638677,-329.30022412,0.00014139,2]
[337768193,1726080638686,-329.30022412,0.00014154,2]
[337768194,1726080638697,-329.30022412,0.00014169,2]
[337768196,1726080638706,-329.30022412,0.00014184,2]
[337768198,1726080638716,-150.0,0.00014187,2]
[337768199,1726080638726,-329.30022412,0.00014199,2]
[337768200,1726080638735,-329.30022412,0.00014214,2]
[337768201,1726080638745,-329.30022412,0.00014229,2]
[337768202,1726080638754,-150.0,0.00014237,2]
[337768203,1726080638763,-150.0,0.00014237,2]
[337768204,1726080638773,-329.30022412,0.00014245,2]
[337768205,1726080638782,-329.30022412,0.0001426,2]
[337768207,1726080638871,-329.30022412,0.00014275,2]
[337768208,1726080638883,-150.0,0.00014287,2]
[337768209,1726080638893,-329.30022412,0.0001429,2]
[337768210,1726080638904,-329.30022412,0.00014305,2]
[337768211,1726080638914,-329.30022412,0.0001432,2]
[337768212,1726080638924,-329.30022412,0.00014335,2]
[337768213,1726080638935,-150.0,0.00014337,2]
[337768214,1726080638946,-150.0,0.00014344,2]
[337768215,1726080638956,-329.30022412,0.00014351,2]
[337768216,1726080638965,-464.6422,0.00014356,2]
[337768217,1726080638975,-329.30022412,0.00014366,2]
[337768218,1726080638984,-329.30022412,0.00014381,2]
[337768219,1726080638994,-150.0,0.00014387,2]
[337768220,1726080639003,-557.0,0.00014388,2]
[337768221,1726080639013,-1920.0,0.00014388,2]
[337768222,1726080639023,-150.0,0.00014388,2]
[337768223,1726080639034,-711.959,0.00014388,2]
[337768224,1726080639044,-329.30022412,0.00014396,2]
[337768225,1726080639054,-329.30022412,0.00014411,2]
[337768226,1726080639065,-329.30022412,0.00014426,2]
[337768227,1726080639076,-150.0,0.00014437,2]
[337768228,1726080639085,-1000.0,0.00014444,2]
[337768229,1726080639095,-150.0,0.00014457,2]
[337768230,1726080639105,-150.0,0.00014487,2]
[337768231,1726080639115,-150.0,0.00014537,2]
[337768232,1726080639125,-150.0,0.00014558,2]
[337768233,1726080639134,-150.0,0.00014587,2]
[337768234,1726080639144,-320.60220561,0.00014636,2]
[337768235,1726080639153,-150.0,0.00014637,2]
[337768236,1726080639163,-157.1,0.00014672,2]
[337768237,1726080639173,-42706.0,0.00014672,2]
[337768238,1726080639182,-150.0,0.00014687,2]
[337768239,1726080639191,-9246.70134051,0.00014726,2]
[337768240,1726080639201,-150.0,0.00014737,2]
[337768241,1726080639210,-150.0,0.00014772,2]
[337768242,1726080639219,-150.0,0.00014786,2]
[337768243,1726080639228,-9197.78670927,0.0001479,2]
[337768244,1726080639238,-283.18083,0.00014795,2]
[337768245,1726080639247,-3000.0,0.000148,2]
[337768246,1726080639256,-790.393,0.00014811,2]
[337768247,1726080639265,-218.441,0.00014811,2]
[337768248,1726080639275,-27740.1040215,0.0001483,2]
[337768249,1726080639285,-150.0,0.00014836,2]
[337768250,1726080639295,-3399.23897511,0.0001485,2]
[337768251,1726080639304,-156.12,0.00014869,2]
[337768252,1726080639313,-9246.70134051,0.0001487,2]
[337768253,1726080639323,-525.57766068,0.00014873,2]
[337768254,1726080639332,-18493.402681,0.0001488,2]
[337768255,1726080639343,-9246.70134051,0.0001488,2]
[337768256,1726080639353,-150.0,0.00014886,2]
[337768257,1726080639364,-525.57766066,0.00014887,2]
[337768258,1726080639373,-21575.687,0.0001489,2]
[337768259,1726080639383,-826.5722,0.0001489,2]
[337768260,1726080639392,-326.1077,0.0001489,2]
[337768261,1726080639402,-6736.9809,0.0001489,2]
[337768262,1726080639411,-566.755,0.0001489,2]
[337768263,1726080639421,-1000.0,0.0001489,2]
[337768264,1726080639430,-19085.6414,0.0001489,2]
[337768265,1726080639440,-281.8951,0.0001489,2]
[337768266,1726080639450,-5246.6883,0.0001489,2]
[337768267,1726080639459,-4227.3186,0.000149,2]
[337768268,1726080639468,-152.96,0.000149,31]
[337768269,1726080639478,-152.96,0.000149,31]
[337768270,1726080639487,-152.96,0.000149,31]
[337768271,1726080639497,-152.96,0.000149,31]
[337768272,1726080639507,-152.96,0.000149,31]
[337768273,1726080639516,-152.96,0.000149,31]
[337768274,1726080639526,-152.96,0.000149,31]
[337768275,1726080639537,-525.57766066,0.000149,2]
[337768276,1726080639547,-150.0,0.00014936,2]
[337768277,1726080639558,-9246.70134051,0.00014952,2]
[337768278,1726080639567,-1000.0,0.00014958,2]
[337768279,1726080639577,-166.42136765,0.0001496,2]
[337768280,1726080639587,-147947.221448,0.0001497,2]
[337768281,1726080639597,-109328.562147,0.0001497,2]
[337768282,1726080639608,-212.09233861,0.00014973,2]
[337768283,1726080639626,-18493.402681,0.0001498,2]
[337768284,1726080639636,-78091.8301054,0.0001498,2]
[337768285,1726080639647,-109328.562147,0.0001498,2]
[337768286,1726080639661,-227.34998643,0.00014986,2]
[337768287,1726080639670,-193.56449436,0.00014986,2]
[337768288,1726080639680,-258.25391741,0.00014986,2]
[337768289,1726080639691,-165.63991103,0.00014986,2]
[337768290,1726080639700,-108313.73322662,0.0001499,2]
[337768291,1726080639714,-1014.82892038,0.0001499,2]
[337768292,1726080639724,-614.8928069,0.0001499,2]
[337768293,1726080639734,-23.57901727,0.0001499,2]
[337768294,1726080639747,-421.399227,0.0001499,2]
[337768295,1726080639759,-169.91456263,0.0001499,2]
[337768296,1726080639769,-614.8928069,0.0001499,2]
[337768297,1726080639779,-614.8928069,0.0001499,2]
[337768298,1726080639788,-614.8928069,0.0001499,2]
[337768299,1726080639798,-193.7063931,0.0001499,2]
[337768300,1726080639808,-193.7063931,0.0001499,2]
[337768301,1726080639817,-193.7063931,0.0001499,2]
[337768302,1726080639827,-193.7063931,0.0001499,2]
[337768303,1726080639836,-164.46831003,0.0001499,2]
[337768304,1726080639848,-29.23808307,0.0001499,2]
[337768305,1726080639857,-2268.1304326,0.0001499,2]
[337768306,1726080639867,-2268.1304326,0.0001499,2]
[337768307,1726080639877,-2268.1304326,0.0001499,2]
[337768308,1726080639887,-1298.96866496,0.0001499,2]
[337768309,1726080639899,-969.16176764,0.0001499,2]
[337768310,1726080639908,-2268.1304326,0.0001499,2]
[337768311,1726080639918,-777.44379976,0.0001499,2]
[337768312,1726080639929,-6525.06999584,0.0001499,2]
[337768313,1726080639941,-785.23100942,0.0001499,2]
[337768314,1726080639956,-1096.35197722,0.0001499,2]
[337768315,1726080639966,-180.36740308,0.0001499,2]
[337768316,1726080639975,-1624.60403349,0.00014993,2]
[337768317,1726080639987,-345.44,0.00014993,2]
[337768318,1726080639999,-298.08639911,0.00014993,2]
[337768319,1726080640009,-823.39398532,0.00014999,2]
[337768320,1726080640018,-142.9551955,0.00014999,2]
[337768321,1726080640030,-545.50301236,0.00014999,2]
[337768322,1726080640046,-845.302431,0.00014999,2]
[337768323,1726080640057,-698.50422535,0.00014999,2]
[337768324,1726080640075,-32.73513579,0.00014999,2]
[337768325,1726080640084,-511.0,0.00014999,2]
[337768326,1726080640093,-12598.95262257,0.00015,2]
[337768327,1726080640105,-11520.88776301,0.00015,2]
[337768328,1726080640116,-468.87,0.00015,2]
[337768329,1726080640128,-1138.0,0.00015,2]
[337768330,1726080640139,-598.06437215,0.00015,2]
[337768337,1726080640890,-642.84,0.00013587,2]
[337768340,1726080640910,-849.73475394,0.00013587,2]
[337768341,1726080640922,-75.02524606,0.00013587,2]
[337768342,1726080640932,-290.74297566,0.0001421,7]
[337768343,1726080640954,-17471.49946175,0.0001421,7]
[337768344,1726080640963,-421.39411001,0.00014525,2]
[337768345,1726080640973,-34257.50303117,0.00015,2]
[337768346,1726080640985,-518.424,0.00015,2]
[337768347,1726080641012,-1620.92916631,0.0001488,2]
[337768348,1726080641023,-5879.07083369,0.0001488,2]
[337768349,1726080641033,-25114.0049472,0.00015,2]
[337768350,1726080641044,-840.77658634,0.00015,2]
[337768351,1726080641057,-1411.6,0.00015,2]
[337768352,1726080641068,-1700.0,0.00015,2]
[337768353,1726080641079,-641.04032029,0.00015,2]
[337768354,1726080641091,-1027.23639687,0.00015,2]
[337768355,1726080641102,-151201.33975092,0.00015,2]
[337768356,1726080641112,-89302.28297021,0.00015,2]
[337768357,1726080641122,-277988.84051054,0.00015,2]
[337768358,1726080641133,-609373.25485755,0.00015,2]
[337768359,1726080641145,-1094.57625342,0.00015,2]
[337768360,1726080641157,-2015.94855758,0.00015,2]
[337768376,1726080643678,-200.15962581,0.00012358,2]
[337768377,1726080643687,-26472.48508819,0.00015,2]
[337768378,1726080643699,-22774.53072021,0.00015,2]
[337768379,1726080643710,-895.88804481,0.00015,2]
[337768380,1726080643721,-4924.92,0.00015,2]
[337768381,1726080643733,-271.99999994,0.00015,2]
[337768382,1726080643757,-1509.89121034,0.00015,2]
[337768383,1726080643769,-6338.659325,0.00015,2]
[337768384,1726080643780,-14254.6643741,0.00015,2]
[337768385,1726080643791,-92402.99795642,0.00015,2]
[337768390,1726080644639,-2498.82070866,0.00015,2]
[337768391,1726080644653,-2901.14715,0.00015,2]
[337768405,1726080646525,-217.12067785,0.000149,2]
[337768406,1726080646534,-998.17944746,0.00015,2]
[337768407,1726080646546,-78229.67342884,0.00015,2]
[337768408,1726080646581,-3417.34393201,0.00015,2]
[337768409,1726080646657,-7496.6866393,0.00015,2]
[337768410,1726080646771,-333.01477701,0.00015,2]
[337768411,1726080646846,-831.659,0.00015,2]
[337768412,1726080646857,-788.36999,0.00015,2]
[337768414,1726080836298,200.0,0.00011164,2]
[337768415,1726080992466,161.5,0.00010959,2]
[337768416,1726081292011,406.3,0.0001109,2]
[337768417,1726081586471,193.67,0.00010959,2]
[337768427,1726081804908,385.98,0.00010566,2]
[337768430,1726081831606,-250.0,0.000123,2]
[337768431,1726081831616,-925.21424959,0.00012448,2]
[337768432,1726081831625,-169.71,0.00012544,2]
[337768433,1726081831634,-250.0,0.00012548,2]
[337768434,1726081831643,-176.33,0.00012564,2]
[337768435,1726081831653,-578.82,0.00012582,2]
[337768436,1726081831662,-150.0,0.00012586,2]
[337768437,1726081831671,-1091.64951568,0.00012586,2]
[337768438,1726081831682,-5756.2505,0.00012586,2]
[337768439,1726081831693,-604.36042706,0.00012586,2]
[337768440,1726081831702,-195.63957294,0.00012605,2]
[337768441,1726081831713,-104.36042706,0.00012605,2]
[337768442,1726081831722,-1869.77694028,0.00012607,2]
[337768443,1726081831734,-130.22305972,0.00012607,2]
[337768444,1726081831743,-250.0,0.00012613,2]
[337768445,1726081831752,-69.77694028,0.00012613,2]
[337768446,1726081831771,-551.105575,0.00012613,2]
[337768447,1726081831784,-562.34198665,0.00012613,2]
[337768448,1726081831795,-165.49549807,0.00012613,2]
[337768449,1726081831805,-124.96450193,0.0001283,2]
[337768477,1726081837521,-261.01549807,0.0001283,2]
[337768479,1726081837531,-250.0,0.00012927,2]
[337768481,1726081837540,-474.00450193,0.00012946,2]
[337768482,1726081837571,-23425.99549807,0.00012946,2]
[337768483,1726081837580,-500.0,0.00012949,2]
[337768484,1726081837590,-1000.0,0.00012966,2]
[337768485,1726081837599,-2336.13380799,0.00012966,2]
[337768486,1726081837622,-897.83619201,0.00012966,2]
[337768487,1726081837632,-211.88338896,0.00013068,2]
[337768488,1726081837678,-288.10661104,0.00013068,2]
[337768489,1726081837688,-150.0,0.00013077,2]
[337768490,1726081837698,-185.19,0.00013078,2]
[337768491,1726081837707,-5971.27,0.00013078,2]
[337768492,1726081837718,-150.0,0.00013488,2]
[337768493,1726081837727,-150.0,0.00013488,2]
[337768494,1726081837737,-150.0,0.00013488,2]
[337768495,1726081837746,-150.0,0.00013488,2]
[337768496,1726081837756,-150.0,0.00013505,2]
[337768497,1726081837765,-150.0,0.00013522,2]
[337768498,1726081837774,-150.0,0.00013539,2]
[337768499,1726081837783,-150.0,0.00013556,2]
[337768500,1726081837793,-150.0,0.00013557,2]
[337768501,1726081837803,-150.0,0.00013574,2]
[337768502,1726081837812,-899.66778141,0.00013578,2]
[337768503,1726081837822,-150.0,0.00013591,2]
[337768504,1726081837831,-150.0,0.00013608,2]
[337768505,1726081837840,-150.0,0.00013624,2]
[337768506,1726081837850,-150.0,0.00013625,2]
[337768507,1726081837859,-150.0,0.00013643,2]
[337768508,1726081837870,-150.0,0.0001366,2]
[337768509,1726081837879,-150.0,0.00013677,2]
[337768510,1726081837893,-24017.318,0.0001369,2]
[337768511,1726081837914,-1000.0,0.0001369,2]
[337768513,1726081837932,-260.755,0.0001369,2]
[337768514,1726081837950,-3795.9502,0.0001369,2]
[337768515,1726081837970,-4045.3257,0.0001369,2]
[337768516,1726081837988,-150.0,0.00013692,2]
[337768517,1726081838006,-150.0,0.00013694,2]
[337768518,1726081838021,-162.3,0.00013699,2]
[337768519,1726081838038,-200.0,0.00013699,2]
[337768520,1726081838058,-5687.47,0.00013699,2]
[337768521,1726081838079,-150.0,0.00013712,2]
[337768522,1726081838092,-150.0,0.00013729,2]
[337768523,1726081838109,-150.0,0.00013746,2]
[337768524,1726081838127,-150.0,0.0001376,2]
[337768525,1726081838144,-150.0,0.00013763,2]
[337768526,1726081838157,-500.0,0.00013773,2]
[337768527,1726081838177,-422.35,0.0001378,3]
[337768528,1726081838194,-150.0,0.00013781,2]
[337768529,1726081838210,-274.91899362,0.00013789,2]
[337768530,1726081838227,-500.0,0.00013789,2]
[337768531,1726081838243,-556.06335157,0.00013789,2]
[337768532,1726081838260,-500.0,0.00013789,2]
[337768533,1726081838276,-642.9942608,0.00013789,2]
[337768534,1726081838292,-3690.32010159,0.0001379,2]
[337768535,1726081838354,-585.70767439,0.0001379,2]
[337768552,1726081839631,-2064.47930396,0.0001379,2]
[337768555,1726081839649,-776.54202704,0.0001379,2]
[337768558,1726081839666,-4253.38618625,0.0001379,2]
[337768561,1726081839685,-4019.09127962,0.0001379,2]
[337768563,1726081839703,-315.6,0.0001379,2]
[337768566,1726081839723,-1388.14847626,0.0001379,2]
[337768574,1726081839884,-1621.6911387,0.0001379,2]
[337768575,1726081839902,-96904.15840643,0.0001379,2]
[337768579,1726081840146,-16818.80771494,0.0001379,2]
[337768580,1726081841172,-1551.43541294,0.0001379,2]
[337768617,1726081842715,-33842.90208829,0.0001379,2]
[337768618,1726081842776,-782.4782933,0.0001379,2]
[337768627,1726081843775,-491.8592599,0.0001379,2]
[337768628,1726081843787,-5149.13413065,0.0001379,2]
[337768629,1726081843820,-6446.29420574,0.0001379,2]
[337768630,1726081843830,-7658.9519,0.0001379,2]
[337768631,1726081843839,-150.0,0.00013798,2]
[337768632,1726081843848,-150.0,0.00013815,2]
[337768633,1726081843859,-150.0,0.00013828,2]
[337768634,1726081843869,-420.0,0.00013829,2]
[337768635,1726081843878,-150.0,0.00013832,2]
[337768636,1726081843887,-157.1,0.00013838,2]
[337768637,1726081843898,-150.0,0.00013849,2]
[337768638,1726081843908,-150.0,0.00013867,2]
[337768639,1726081843917,-150.0,0.00013884,2]
[337768640,1726081843926,-150.0,0.00013896,2]
[337768641,1726081843935,-150.0,0.00013901,2]
[337768642,1726081843945,-150.0,0.00013918,2]
[337768643,1726081843954,-150.0,0.00013936,2]
[337768644,1726081843964,-150.0,0.00013953,2]
[337768645,1726081843974,-150.0,0.00013965,2]
[337768646,1726081843984,-150.0,0.0001397,2]
[337768647,1726081843994,-150.0,0.00013987,2]
[337768648,1726081844004,-150.0,0.00014004,2]
[337768649,1726081844013,-150.0,0.00014022,2]
[337768650,1726081844023,-164.56,0.0001403,2]